fUSD/lending_fUSD_20240427
["ID","MTS","AMOUNT","RATE_DAILY","PERIOD"]
[323748794,1714233042471,-1934.59,0.00010958,2]
[323748795,1714233042482,-500.0,0.00010958,2]
[323748796,1714233042491,-500.0,0.00010958,2]
[323748797,1714233042501,-500.0,0.00010958,2]
[323748798,1714233042511,-500.0,0.00010958,2]
[323748799,1714233042522,-1358.54,0.00010958,2]
[323748800,1714233042531,-500.0,0.00010958,2]
[323748801,1714233042540,-872.42,0.00010958,2]
[323748802,1714233042550,-500.0,0.00010958,2]
[323748803,1714233042560,-1202.4,0.00010958,2]
[323748804,1714233042570,-500.0,0.00010958,2]
[323748805,1714233042580,-647.21,0.00010958,2]
[323748806,1714233042590,-500.0,0.00010958,2]
[323748807,1714233042599,-500.0,0.00010958,2]
[323748808,1714233042608,-500.0,0.00010958,2]
[323748809,1714233042618,-500.0,0.00010958,2]
[323748810,1714233042628,-500.0,0.00010958,2]
[323748811,1714233042637,-1534.34,0.00010958,2]
[323748812,1714233042646,-500.0,0.00010958,2]
[323748813,1714233042656,-500.0,0.00010958,2]
[323748814,1714233042665,-500.0,0.00010958,2]
[323748815,1714233042674,-500.0,0.00010958,2]
[323748816,1714233042684,-500.0,0.00010958,2]
[323748817,1714233042693,-500.0,0.00010958,2]
[323748818,1714233042702,-1051.96,0.00010958,2]
[323748819,1714233042712,-500.0,0.00010958,2]
[323748820,1714233042721,-500.0,0.00010958,2]
[323748821,1714233042731,-500.0,0.00010958,2]
[323748822,1714233042740,-500.0,0.00010958,2]
[323748823,1714233042751,-500.0,0.00010958,2]
[323748824,1714233042760,-500.0,0.00010958,2]
[323748825,1714233042770,-500.0,0.00010958,2]
[323748826,1714233042780,-1925.07,0.00010958,2]
[323748827,1714233042791,-500.0,0.00010958,2]
[323748828,1714233042800,-208.30620516,0.00010958,2]
[323748829,1714233042811,-589.75,0.00010958,2]
[323748830,1714233042820,-500.0,0.00010958,2]
[323748831,1714233042830,-1480.78,0.00010958,2]
[323748832,1714233042841,-500.0,0.00010958,2]
[323748833,1714233042851,-500.0,0.00010958,2]
[323748834,1714233042860,-500.0,0.00010958,2]
[323748835,1714233042873,-500.0,0.00010958,2]
[323748836,1714233042883,-500.0,0.00010958,2]
[323748837,1714233042893,-500.0,0.00010958,2]
[323748838,1714233042902,-500.0,0.00010958,2]
[323748839,1714233042911,-500.0,0.00010958,2]
[323748840,1714233042921,-500.0,0.00010958,2]
[323748841,1714233042930,-1536.68,0.00010958,2]
[323748842,1714233042940,-630.21,0.00010958,2]
[323748844,1714233042949,-500.0,0.00010958,2]
[323748846,1714233042958,-500.0,0.00010958,2]
[323748848,1714233042967,-951.72,0.00010958,2]
[323748850,1714233042977,-500.0,0.00010958,2]
[323748852,1714233042986,-503.74751898,0.00010958,2]
[323748854,1714233042997,-500.0,0.00010958,2]
[323748855,1714233043005,-500.0,0.00010958,2]
[323748857,1714233043015,-500.0,0.00010958,2]
[323748858,1714233043024,-500.0,0.00010958,2]
[323748859,1714233043033,-500.0,0.00010958,2]
[323748860,1714233043042,-500.0,0.00010958,2]
[323748861,1714233043051,-500.0,0.00010958,2]
[323748864,1714233043061,-500.0,0.00010958,2]
[323748865,1714233043070,-500.0,0.00010958,2]
[323748867,1714233043079,-505.62263145,0.00010958,2]
[323748869,1714233043089,-500.0,0.00010958,2]
[323748871,1714233043099,-500.0,0.00010958,2]
[323748873,1714233043108,-500.0,0.00010958,2]
[323748876,1714233043117,-500.0,0.00010958,2]
[323748879,1714233043127,-500.0,0.00010958,2]
[323748881,1714233043137,-500.0,0.00010958,2]
[323748883,1714233043146,-500.0,0.00010958,2]
[323748884,1714233043156,-500.0,0.00010958,2]
[323748885,1714233043167,-1600.97,0.00010958,2]
[323748886,1714233043177,-500.0,0.00010958,2]
[323748887,1714233043187,-500.0,0.00010958,2]
[323748888,1714233043197,-537.57,0.00010958,2]
[323748889,1714233043207,-500.0,0.00010958,2]
[323748890,1714233043217,-3798.61,0.00010958,2]
[323748891,1714233043226,-668.28,0.00010958,2]
[323748892,1714233043235,-500.0,0.00010958,2]
[323748893,1714233043247,-500.0,0.00010958,2]
[323748894,1714233043258,-500.0,0.00010958,2]
[323748895,1714233043267,-1463.98,0.00010958,2]
[323748896,1714233043277,-500.0,0.00010958,2]
[323748897,1714233043287,-500.0,0.00010958,2]
[323748898,1714233043296,-500.0,0.00010958,2]
[323748899,1714233043305,-500.0,0.00010958,2]
[323748900,1714233043378,-500.0,0.00010958,2]
[323748901,1714233043391,-500.0,0.00010958,2]
[323748902,1714233043402,-500.0,0.00010958,2]
[323748903,1714233043412,-887.23,0.00010958,2]
[323748904,1714233043423,-588.80877414,0.00010958,2]
[323748905,1714233043433,-500.0,0.00010958,2]
[323748906,1714233043444,-500.0,0.00010958,2]
[323748907,1714233043453,-1268.43,0.00010958,2]
[323748908,1714233043465,-1724.5,0.00010958,2]
[323748909,1714233043475,-502.85909482,0.00010958,2]
[323748910,1714233043485,-500.0,0.00010958,2]
[323748911,1714233043498,-500.0,0.00010958,2]
[323748912,1714233043507,-500.0,0.00010958,2]
[323748913,1714233043516,-500.0,0.00010958,2]
[323748914,1714233043525,-500.0,0.00010958,2]
[323748915,1714233043535,-500.0,0.00010958,2]
[323748916,1714233043544,-501.67538661,0.00010958,2]
[323748917,1714233043554,-500.0,0.00010958,2]
[323748918,1714233043563,-500.0,0.00010958,2]
[323748919,1714233043573,-500.0,0.00010958,2]
[323748920,1714233043582,-623.75,0.00010958,2]
[323748921,1714233043592,-504.06058235,0.00010958,2]
[323748922,1714233043601,-506.58411976,0.00010958,2]
[323748923,1714233043610,-500.0,0.00010958,2]
[323748924,1714233043620,-500.0,0.00010958,2]
[323748925,1714233043630,-500.0,0.00010958,2]
[323748926,1714233043639,-500.0,0.00010958,2]
[323748927,1714233043649,-2522.2,0.00010958,2]
[323748928,1714233043658,-635.929204,0.00010958,2]
[323748929,1714233043668,-500.0,0.00010958,2]
[323748930,1714233043677,-503.26241233,0.00010958,2]
[323748931,1714233043686,-500.0,0.00010958,2]
[323748932,1714233043695,-500.0,0.00010958,2]
[323748933,1714233043705,-500.0,0.00010958,2]
[323748934,1714233043715,-500.0,0.00010958,2]
[323748935,1714233043724,-500.0,0.00010958,2]
[323748936,1714233043734,-500.0,0.00010958,2]
[323748937,1714233043743,-500.0,0.00010958,2]
[323748938,1714233043753,-506.38725842,0.00010958,2]
[323748939,1714233043762,-11143.22,0.00010958,2]
[323748940,1714233043772,-734.91,0.00010958,2]
[323748941,1714233043781,-1740.6,0.00010958,2]
[323748943,1714233043791,-500.0,0.00010958,2]
[323748945,1714233043801,-500.0,0.00010958,2]
[323748948,1714233043810,-500.0,0.00010958,2]
[323748951,1714233043819,-1220.75,0.00010958,2]
[323748954,1714233043828,-1200.04,0.00010958,2]
[323748957,1714233043838,-500.0,0.00010958,2]
[323748960,1714233043847,-500.0,0.00010958,2]
[323748963,1714233043857,-500.0,0.00010958,2]
[323748966,1714233043866,-500.0,0.00010958,2]
[323748969,1714233043875,-500.0,0.00010958,2]
[323748972,1714233043885,-500.0,0.00010958,2]
[323748975,1714233043894,-500.0,0.00010958,2]
[323748978,1714233043904,-1226.75,0.00010958,2]
[323748980,1714233043913,-500.0,0.00010958,2]
[323748981,1714233043922,-150.0,0.00010958,2]
[323748982,1714233043931,-500.0,0.00010958,2]
[323748983,1714233043940,-500.0,0.00010958,2]
[323748984,1714233043950,-500.0,0.00010958,2]
[323748985,1714233043959,-500.0,0.00010958,2]
[323748986,1714233043968,-929.25,0.00010958,2]
[323748987,1714233043977,-510.62000374,0.00010958,2]
[323748988,1714233043986,-500.0,0.00010958,2]
[323748989,1714233043997,-1270.3,0.00010958,2]
[323748990,1714233044006,-500.0,0.00010958,2]
[323748991,1714233044015,-500.0,0.00010958,2]
[323748992,1714233044025,-500.0,0.00010958,2]
[323748993,1714233044034,-500.0,0.00010958,2]
[323748994,1714233044043,-500.0,0.00010958,2]
[323748995,1714233044052,-1222.89,0.00010958,2]
[323748996,1714233044061,-2739.46,0.00010958,2]
[323748997,1714233044070,-500.0,0.00010958,2]
[323748998,1714233044079,-503.38897195,0.00010958,2]
[323748999,1714233044089,-500.0,0.00010958,2]
[323749000,1714233044098,-5000.0,0.00010958,2]
[323749001,1714233044107,-500.0,0.00010958,2]
[323749002,1714233044116,-500.0,0.00010958,2]
[323749003,1714233044126,-500.0,0.00010958,2]
[323749004,1714233044135,-503.95,0.00010958,2]
[323749005,1714233044144,-500.0,0.00010958,2]
[323749006,1714233044154,-918.48,0.00010958,2]
[323749007,1714233044164,-500.0,0.00010958,2]
[323749008,1714233044173,-500.0,0.00010958,2]
[323749009,1714233044182,-500.0,0.00010958,2]
[323749010,1714233044192,-500.0,0.00010958,2]
[323749011,1714233044201,-500.0,0.00010958,2]
[323749012,1714233044211,-1990.14,0.00010958,2]
[323749013,1714233044221,-500.0,0.00010958,2]
[323749014,1714233044230,-500.0,0.00010958,2]
[323749015,1714233044239,-500.0,0.00010958,2]
[323749016,1714233044250,-500.11112978,0.00010958,2]
[323749017,1714233044258,-500.0,0.00010958,2]
[323749018,1714233044268,-500.0,0.00010958,2]
[323749019,1714233044278,-500.0,0.00010958,2]
[323749020,1714233044287,-500.0,0.00010958,2]
[323749021,1714233044297,-998.67,0.00010958,2]
[323749022,1714233044307,-500.0,0.00010958,2]
[323749023,1714233044316,-500.0,0.00010958,2]
[323749024,1714233044325,-244.88367504,0.00010958,2]
[323749025,1714233044334,-1300.2,0.00010958,2]
[323749026,1714233044343,-500.0,0.00010958,2]
[323749027,1714233044352,-500.0,0.00010958,2]
[323749028,1714233044362,-500.0,0.00010958,2]
[323749029,1714233044371,-1599.37,0.00010958,2]
[323749030,1714233044381,-566.14,0.00010958,2]
[323749031,1714233044393,-500.0,0.00010958,2]
[323749032,1714233044402,-500.0,0.00010958,2]
[323749033,1714233044411,-500.0,0.00010958,2]
[323749034,1714233044421,-1829.311017,0.00010958,2]
[323749035,1714233044431,-1653.57,0.00010958,2]
[323749036,1714233044440,-500.35426088,0.00010958,2]
[323749037,1714233044450,-541.55,0.00010958,2]
[323749038,1714233044461,-1829.311017,0.00010958,2]
[323749039,1714233044471,-500.0,0.00010958,2]
[323749040,1714233044481,-306.2320016,0.00010958,2]
[323749041,1714233044491,-500.0,0.00010958,2]
[323749042,1714233044501,-1269.56,0.00010958,2]
[323749043,1714233044511,-500.0,0.00010958,2]
[323749044,1714233044521,-500.0,0.00010958,2]
[323749045,1714233044531,-500.0,0.00010958,2]
[323749046,1714233044540,-10410.12,0.00010958,2]
[323749047,1714233044550,-690.86,0.00010958,2]
[323749048,1714233044560,-500.0,0.00010958,2]
[323749049,1714233044569,-500.0,0.00010958,2]
[323749050,1714233044578,-1829.311017,0.00010958,2]
[323749051,1714233044589,-500.0,0.00010958,2]
[323749052,1714233044599,-1829.311017,0.00010958,2]
[323749053,1714233044609,-169.24281867,0.00010958,2]
[323749054,1714233044621,-500.0,0.00010958,2]
[323749055,1714233044630,-1530.76,0.00010958,2]
[323749056,1714233044640,-500.0,0.00010958,2]
[323749057,1714233044651,-500.0,0.00010958,2]
[323749058,1714233044661,-581.88369663,0.00010958,2]
[323749059,1714233044672,-500.0,0.00010958,2]
[323749060,1714233044683,-500.0,0.00010958,2]
[323749061,1714233044692,-2012.66,0.00010958,2]
[323749062,1714233044704,-500.0,0.00010958,2]
[323749063,1714233044713,-499.45562817,0.00010958,2]
[323749064,1714233044723,-500.0,0.00010958,2]
[323749065,1714233044733,-500.0,0.00010958,2]
[323749066,1714233044742,-500.0,0.00010958,2]
[323749067,1714233044752,-606.7,0.00010958,2]
[323749068,1714233044761,-500.0,0.00010958,2]
[323749069,1714233044771,-500.0,0.00010958,2]
[323749070,1714233044780,-500.0,0.00010958,2]
[323749071,1714233044790,-843.98,0.00010958,2]
[323749072,1714233044800,-530.42,0.00010958,2]
[323749073,1714233044810,-500.0,0.00010958,2]
[323749074,1714233044819,-500.0,0.00010958,2]
[323749075,1714233044829,-502.15813211,0.00010958,2]
[323749076,1714233044838,-500.0,0.00010958,2]
[323749077,1714233044848,-501.37525642,0.00010958,2]
[323749078,1714233044858,-500.0,0.00010958,2]
[323749079,1714233044868,-500.0,0.00010958,2]
[323749080,1714233044878,-503.32682335,0.00010958,2]
[323749081,1714233044887,-1659.4,0.00010958,2]
[323749082,1714233044897,-500.0,0.00010958,2]
[323749083,1714233044908,-500.0,0.00010958,2]
[323749084,1714233044918,-500.0,0.00010958,2]
[323749085,1714233044928,-502.95620612,0.00010958,2]
[323749086,1714233044938,-500.0,0.00010958,2]
[323749087,1714233044947,-500.0,0.00010958,2]
[323749088,1714233044957,-503.59455069,0.00010958,2]
[323749089,1714233044966,-694.12,0.00010958,2]
[323749090,1714233044976,-500.0,0.00010958,2]
[323749091,1714233044985,-2703.1,0.00010958,2]
[323749092,1714233044994,-500.0,0.00010958,2]
[323749093,1714233045004,-1087.23,0.00010958,2]
[323749094,1714233045013,-6625.09,0.00010958,2]
[323749095,1714233045023,-588.75,0.00010958,2]
[323749096,1714233045033,-1164.83,0.00010958,2]
[323749097,1714233045043,-500.0,0.00010958,2]
[323749098,1714233045052,-500.0,0.00010958,2]
[323749099,1714233045062,-500.0,0.00010958,2]
[323749100,1714233045072,-500.0,0.00010958,2]
[323749101,1714233045082,-500.0,0.00010958,2]
[323749102,1714233045091,-500.0,0.00010958,2]
[323749103,1714233045101,-500.0,0.00010958,2]
[323749104,1714233045110,-500.0,0.00010958,2]
[323749105,1714233045126,-500.0,0.00010958,2]
[323749106,1714233045150,-714.27,0.00010958,2]
[323749107,1714233045160,-500.0,0.00010958,2]
[323749108,1714233045170,-500.0,0.00010958,2]
[323749109,1714233045180,-500.0,0.00010958,2]
[323749110,1714233045190,-762.94,0.00010958,2]
[323749111,1714233045201,-500.88683896,0.00010958,2]
[323749112,1714233045212,-500.0,0.00010958,2]
[323749113,1714233045221,-500.0,0.00010958,2]
[323749114,1714233045231,-1102.95,0.00010958,2]
[323749115,1714233045242,-500.0,0.00010958,2]
[323749116,1714233045252,-500.0,0.00010958,2]
[323749117,1714233045261,-2185.17,0.00010958,2]
[323749118,1714233045272,-500.0,0.00010958,2]
[323749119,1714233045281,-500.0,0.00010958,2]
[323749120,1714233045291,-520.43,0.00010958,2]
[323749121,1714233045300,-500.0,0.00010958,2]
[323749122,1714233045310,-500.4325115,0.00010958,2]
[323749123,1714233045319,-500.0,0.00010958,2]
[323749124,1714233045329,-500.0,0.00010958,2]
[323749125,1714233045339,-503.63610716,0.00010958,2]
[323749126,1714233045350,-500.0,0.00010958,2]
[323749127,1714233045361,-1022.66,0.00010958,2]
[323749128,1714233045372,-226.891885,0.00010958,2]
[323749129,1714233045385,-1157.03,0.00010958,2]
[323749130,1714233045395,-500.0,0.00010958,2]
[323749131,1714233045404,-500.0,0.00010958,2]
[323749132,1714233045415,-502.12161807,0.00010958,2]
[323749133,1714233045424,-500.0,0.00010958,2]
[323749134,1714233045434,-609.3,0.00010958,2]
[323749135,1714233045443,-500.0,0.00010958,2]
[323749136,1714233045453,-500.0,0.00010958,2]
[323749137,1714233045463,-500.0,0.00010958,2]
[323749138,1714233045472,-500.0,0.00010958,2]
[323749139,1714233045481,-500.0,0.00010958,2]
[323749140,1714233045491,-1761.54,0.00010958,2]
[323749141,1714233045502,-4396.34,0.00010958,2]
[323749142,1714233045512,-627.99,0.00010958,2]
[323749143,1714233045522,-500.0,0.00010958,2]
[323749144,1714233045531,-500.0,0.00010958,2]
[323749145,1714233045541,-500.0,0.00010958,2]
[323749146,1714233045550,-500.0,0.00010958,2]
[323749147,1714233045559,-500.0,0.00010958,2]
[323749148,1714233045569,-500.0,0.00010958,2]
[323749149,1714233045578,-988.41,0.00010958,2]
[323749150,1714233045588,-503.19367318,0.00010958,2]
[323749151,1714233045597,-500.0,0.00010958,2]
[323749152,1714233045607,-500.0,0.00010958,2]
[323749153,1714233045616,-629.53458178,0.00010958,2]
[323749154,1714233045627,-500.0,0.00010958,2]
[323749155,1714233045636,-500.0,0.00010958,2]
[323749156,1714233045646,-500.0,0.00010958,2]
[323749157,1714233045656,-1766.49,0.00010958,2]
[323749158,1714233045665,-1298.41,0.00010958,2]
[323749159,1714233045675,-1722.36,0.00010958,2]
[323749160,1714233045684,-500.0,0.00010958,2]
[323749161,1714233045693,-505.17242314,0.00010958,2]
[323749162,1714233045703,-500.0,0.00010958,2]
[323749163,1714233045712,-500.0,0.00010958,2]
[323749164,1714233045722,-2079.57,0.00010958,2]
[323749165,1714233045731,-3175.82,0.00010958,2]
[323749166,1714233045741,-500.0,0.00010958,2]
[323749167,1714233045753,-244.82032097,0.00010958,2]
[323749168,1714233045762,-1595.03,0.00010958,2]
[323749169,1714233045772,-1875.58,0.00010958,2]
[323749170,1714233045782,-500.0,0.00010958,2]
[323749171,1714233045794,-500.0,0.00010958,2]
[323749172,1714233045803,-500.0,0.00010958,2]
[323749173,1714233045813,-500.0,0.00010958,2]
[323749174,1714233045822,-500.0,0.00010958,2]
[323749175,1714233045832,-550.89,0.00010958,2]
[323749176,1714233045842,-500.0,0.00010958,2]
[323749177,1714233045851,-500.0,0.00010958,2]
[323749178,1714233045861,-500.0,0.00010958,2]
[323749179,1714233045870,-500.0,0.00010958,2]
[323749180,1714233045880,-500.0,0.00010958,2]
[323749181,1714233045889,-500.0,0.00010958,2]
[323749182,1714233045899,-500.0,0.00010958,2]
[323749183,1714233045908,-500.0,0.00010958,2]
[323749184,1714233045918,-500.0,0.00010958,2]
[323749185,1714233045928,-815.17,0.00010958,2]
[323749186,1714233045938,-500.0,0.00010958,2]
[323749187,1714233045947,-500.0,0.00010958,2]
[323749188,1714233045957,-500.0,0.00010958,2]
[323749189,1714233045966,-500.0,0.00010958,2]
[323749190,1714233045975,-1560.64,0.00010958,2]
[323749191,1714233045985,-2615.12,0.00010958,2]
[323749192,1714233045994,-500.0,0.00010958,2]
[323749193,1714233046004,-500.0,0.00010958,2]
[323749194,1714233046014,-500.0,0.00010958,2]
[323749195,1714233046024,-1051.71,0.00010958,2]
[323749196,1714233046034,-500.0,0.00010958,2]
[323749198,1714233046043,-759.32,0.00010958,2]
[323749200,1714233046053,-500.0,0.00010958,2]
[323749202,1714233046063,-622.44,0.00010958,2]
[323749204,1714233046073,-500.0,0.00010958,2]
[323749205,1714233046083,-500.0,0.00010958,2]
[323749207,1714233046093,-500.0,0.00010958,2]
[323749209,1714233046102,-500.0,0.00010958,2]
[323749211,1714233046112,-500.70519064,0.00010958,2]
[323749213,1714233046121,-500.0,0.00010958,2]
[323749215,1714233046131,-500.0,0.00010958,2]
[323749217,1714233046141,-975.74,0.00010958,2]
[323749219,1714233046150,-500.0,0.00010958,2]
[323749221,1714233046160,-500.0,0.00010958,2]
[323749223,1714233046170,-500.0,0.00010958,2]
[323749225,1714233046179,-1651.43,0.00010958,2]
[323749226,1714233046189,-500.0,0.00010958,2]
[323749227,1714233046198,-809.11,0.00010958,2]
[323749228,1714233046208,-4326.62,0.00010958,2]
[323749229,1714233046217,-500.0,0.00010958,2]
[323749230,1714233046227,-503.16110823,0.00010958,2]
[323749231,1714233046237,-1388.31,0.00010958,2]
[323749232,1714233046248,-500.0,0.00010958,2]
[323749233,1714233046257,-500.0,0.00010958,2]
[323749234,1714233046267,-500.0,0.00010958,2]
[323749235,1714233046276,-500.0,0.00010958,2]
[323749236,1714233046285,-606.22,0.00010958,2]
[323749237,1714233046295,-1193.23,0.00010958,2]
[323749238,1714233046304,-500.0,0.00010958,2]
[323749239,1714233046314,-500.0,0.00010958,2]
[323749240,1714233046323,-500.0,0.00010958,2]
[323749241,1714233046333,-500.0,0.00010958,2]
[323749242,1714233046342,-1518.2,0.00010958,2]
[323749243,1714233046352,-522.33,0.00010958,2]
[323749244,1714233046362,-500.0,0.00010958,2]
[323749245,1714233046372,-500.0,0.00010958,2]
[323749246,1714233046385,-500.0,0.00010958,2]
[323749247,1714233046396,-500.0,0.00010958,2]
[323749248,1714233046405,-1289.14,0.00010958,2]
[323749249,1714233046415,-632.76,0.00010958,2]
[323749250,1714233046427,-476.42041799,0.00010958,2]
[323749251,1714233046437,-500.0,0.00010958,2]
[323749252,1714233046447,-500.0,0.00010958,2]
[323749253,1714233046457,-500.0,0.00010958,2]
[323749254,1714233046470,-500.0,0.00010958,2]
[323749255,1714233046479,-2077.01,0.00010958,2]
[323749256,1714233046489,-500.0,0.00010958,2]
[323749257,1714233046500,-500.0,0.00010958,2]
[323749258,1714233046510,-500.0,0.00010958,2]
[323749259,1714233046520,-497.8998392,0.00010958,2]
[323749260,1714233046529,-500.0,0.00010958,2]
[323749261,1714233046539,-500.0,0.00010958,2]
[323749262,1714233046548,-500.0,0.00010958,2]
[323749263,1714233046558,-500.0,0.00010958,2]
[323749264,1714233046568,-500.0,0.00010958,2]
[323749265,1714233046577,-500.0,0.00010958,2]
[323749266,1714233046587,-500.0,0.00010958,2]
[323749268,1714233046597,-502.34897089,0.00010958,2]
[323749269,1714233046607,-500.0,0.00010958,2]
[323749270,1714233046616,-2562.51,0.00010958,2]
[323749271,1714233046626,-954.87,0.00010958,2]
[323749272,1714233046636,-709.18,0.00010958,2]
[323749273,1714233046646,-500.0,0.00010958,2]
[323749274,1714233046655,-271.01026853,0.00010958,2]
[323749275,1714233046665,-961.23,0.00010958,2]
[323749276,1714233046674,-933.2,0.00010958,2]
[323749277,1714233046686,-500.0,0.00010958,2]
[323749278,1714233046696,-500.0,0.00010958,2]
[323749279,1714233046706,-500.0,0.00010958,2]
[323749280,1714233046716,-500.0,0.00010958,2]
[323749281,1714233046726,-500.0,0.00010958,2]
[323749282,1714233046740,-500.0,0.00010958,2]
[323749283,1714233046913,-1900.33,0.00010958,2]
[323749284,1714233046923,-500.0,0.00010958,2]
[323749285,1714233046932,-500.0,0.00010958,2]
[323749286,1714233046942,-500.0,0.00010958,2]
[323749287,1714233046951,-500.0,0.00010958,2]
[323749288,1714233046961,-529.46,0.00010958,2]
[323749289,1714233046970,-500.0,0.00010958,2]
[323749290,1714233046980,-500.0,0.00010958,2]
[323749291,1714233046989,-500.0,0.00010958,2]
[323749292,1714233046999,-746.66,0.00010958,2]
[323749293,1714233047009,-589.51,0.00010958,2]
[323749294,1714233047018,-1068.78,0.00010958,2]
[323749295,1714233047027,-502.9586078,0.00010958,2]
[323749296,1714233047037,-805.74,0.00010958,2]
[323749297,1714233047046,-500.0,0.00010958,2]
[323749298,1714233047055,-516.01643017,0.00010958,2]
[323749299,1714233047064,-500.0,0.00010958,2]
[323749300,1714233047074,-500.0,0.00010958,2]
[323749301,1714233047083,-1200.18,0.00010958,2]
[323749302,1714233047092,-500.0,0.00010958,2]
[323749303,1714233047101,-1697.45,0.00010958,2]
[323749304,1714233047111,-500.0,0.00010958,2]
[323749305,1714233047121,-500.0,0.00010958,2]
[323749306,1714233047130,-632.42,0.00010958,2]
[323749307,1714233047140,-500.0,0.00010958,2]
[323749308,1714233047149,-352.25,0.00010958,2]
[323749309,1714233047159,-500.0,0.00010958,2]
[323749310,1714233047168,-500.0,0.00010958,2]
[323749311,1714233047177,-503.02892833,0.00010958,2]
[323749312,1714233047186,-500.0,0.00010958,2]
[323749313,1714233047196,-500.0,0.00010958,2]
[323749314,1714233047206,-500.0,0.00010958,2]
[323749315,1714233047215,-500.0,0.00010958,2]
[323749316,1714233047225,-500.0,0.00010958,2]
[323749317,1714233047234,-500.0,0.00010958,2]
[323749318,1714233047243,-500.0,0.00010958,2]
[323749319,1714233047256,-500.0,0.00010958,2]
[323749320,1714233047266,-500.0,0.00010958,2]
[323749321,1714233047276,-500.0,0.00010958,2]
[323749322,1714233047285,-378.3072274,0.00010958,2]
[323749323,1714233047686,-121.6927726,0.00010958,2]
[323749324,1714233047696,-500.0,0.00010958,2]
[323749325,1714233047706,-1604.91,0.00010958,2]
[323749326,1714233047715,-500.0,0.00010958,2]
[323749327,1714233047726,-500.0,0.00010958,2]
[323749328,1714233047735,-1220.06,0.00010958,2]
[323749329,1714233047744,-500.0,0.00010958,2]
[323749330,1714233047755,-500.0,0.00010958,2]
[323749331,1714233047765,-500.0,0.00010958,2]
[323749332,1714233047775,-619.37332334,0.00010958,2]
[323749333,1714233047787,-1372.13667666,0.00010958,2]
[323749334,1714233047796,-500.0,0.00010958,2]
[323749335,1714233047806,-529.61,0.00010958,2]
[323749336,1714233047816,-500.0,0.00010958,2]
[323749337,1714233047826,-500.0,0.00010958,2]
[323749338,1714233047838,-500.0,0.00010958,2]
[323749339,1714233047849,-500.0,0.00010958,2]
[323749340,1714233047858,-500.0,0.00010958,2]
[323749341,1714233047867,-500.0,0.00010958,2]
[323749342,1714233047877,-500.0,0.00010958,2]
[323749343,1714233047886,-1388.22079614,0.00010958,2]
[323749344,1714233047898,-222.87920386,0.00010958,2]
[323749345,1714233047910,-500.0,0.00010958,2]
[323749346,1714233047921,-500.0,0.00010958,2]
[323749347,1714233047930,-230.065729,0.00010959,2]
[323749348,1714233047940,-230.065729,0.00010959,2]
[323749349,1714233047949,-151.0,0.00010959,2]
[323749350,1714233047958,-151.0,0.00010959,2]
[323749351,1714233047967,-151.0,0.00010959,2]
[323749352,1714233047976,-154.242716,0.00010959,2]